Cogmind - Beta 11.1 @@@ ROGUE MODE // 2022.04.29 @ 22:22:55 Player: Olga Result: Self-destructed Performance ------------- Evolutions (1) 500 Regions Visited (2) 400 Robots Destroyed (0) 0 Value Destroyed (0) 0 Prototype IDs (0) 0 Alien Tech Used (0) 0 Bonus (200) 200 TOTAL SCORE: 1100 Bonus ------- Pacifist 200 Cogmind --------- Core Integrity 351/400 Matter 265/300 Energy 99/100 System Corruption 0% Temperature Cool (6) Movement Core (50) Location -9/Materials Parts ------- > --- POWER (1) -------- (None) > --- PROPULSION (3) --- (None) > --- UTILITY (3) ------ System Shield System Shield System Shield > --- WEAPON (2) ------- (None) > --- INVENTORY (5) ---- Light Ion Engine Wheel Compact Wheel System Shield EM Pulse Gun Peak State ------------ > --- POWER ------------ (None) > --- PROPULSION ------- Flight Unit > --- UTILITY ---------- System Shield System Shield System Shield > --- WEAPON ----------- (None) > --- INVENTORY -------- Light Ion Engine Light Treads Wheel Compact Wheel EM Pulse Gun [Rating: 10] Favorites ----------- Power Light Ion Engine Engine Light Ion Engine Propulsion Aluminum Leg Leg Aluminum Leg Flight Unit Flight Unit Utility System Shield Storage Small Storage Unit Hackware System Shield Weapon EM Pulse Gun Energy Gun EM Pulse Gun Build | -11 -10 -9 ------- Run | Scr Mat Mat Slots Evolved 2 | . . 2 Power . | . . . Propulsion 1 | . . 1 Utility 1 | . . 1 Weapon . | . . . Parts Attached 4 | . 1 3 Power . | . . . Engine . | . . . Core . | . . . Reactor . | . . . Propulsion 1 | . 1 . Treads . | . . . Leg . | . . . Wheel . | . . . Hover . | . . . Flight 1 | . 1 . Utility 3 | . . 3 Device . | . . . Storage . | . . . Processor . | . . . Hackware 3 | . . 3 Protection . | . . . Artifact . | . . . Weapon . | . . . Energy Gun . | . . . Energy Cannon . | . . . Ballistic Gun . | . . . Ballistic Cannon . | . . . Launcher . | . . . Special Weapon . | . . . Impact Weapon . | . . . Slashing Weapon . | . . . Piercing Weapon . | . . . Special Melee Weapon . | . . . Unidentified Prototypes . | . . . Parts Lost 1 | . . 1 Power . | . . . Propulsion 1 | . . 1 Utility . | . . . Weapon . | . . . Highest Loss Streak 1 | . . 1 To Critical Strikes . | . . . Average Slot Usage (%) 54 | . 67 31 Engine 6 | . 10 . Leg 13 | . 21 . Flight 4 | . 3 6 Storage 6 | . 10 . Hackware 9 | . . 25 Energy Gun 13 | . 21 . Naked Turns . | . . . Heaviest Build 12 | 12 12 . Greatest Support 20 | 20 20 4 Greatest Overweight (x) . | . . . Average Overweight (x) . | . . . Largest Inventory Capacity 8 | . 8 5 Average Capacity 6 | . 7 5 Most Carried 6 | . 6 5 Average Carried 5 | . 5 5 Final Capacity 8 | 8 5 5 Final Carried 6 | 6 5 5 Class Distribution -------------------- 74% | Mutant 25% | Hacker-Mutant Dominant Class ---------------- Mutant | -10/Materials Hacker-Mutant | -9/Materials Resources | -11 -10 -9 ----------- Run | Scr Mat Mat Matter Collected 200 | 200 . . Remotely . | . . . Salvage Created . | . . . Parts . | . . . Haulers Intercepted . | . . . Recyclers Shooed . | . . . Parts Field Recycled . | . . . Retrieved Matter . | . . . Parts Self-Destructed . | . . . Prevented . | . . . Kills | -11 -10 -9 ------- Run | Scr Mat Mat Combat Hostiles Destroyed . | . . . Classes Destroyed . | . . . Best Kill Streak . | . . . Combat Bots Only . | . . . Max Kills in Single Turn . | . . . Gunslinging . | . . . Exploded . | . . . Melee . | . . . Uniques/NPCs Destroyed . | . . . Combat | -11 -10 -9 -------- Run | Scr Mat Mat Damage Taken 117 | . 44 73 Core 61 | . 12 49 Absorbed by Shields . | . . . Core Remaining (%) 97 | 100 95 . Volleys Fired . | . . . Largest . | . . . Hottest . | . . . Shots Fired . | . . . Gun . | . . . Cannon . | . . . Launcher . | . . . Special . | . . . Kinetic . | . . . Thermal . | . . . Explosive . | . . . Electromagnetic . | . . . Robot Hit Streak . | . . . Robot Miss Streak . | . . . Penetration Max . | . . . Secondary Targets . | . . . Shots Hit Robots . | . . . Core Hits . | . . . Critical Kills . | . . . Critical Parts Destroyed . | . . . Critical Strikes . | . . . Melee Attacks . | . . . Impact . | . . . Slashing . | . . . Piercing . | . . . Sneak Attacks . | . . . Combat Hostiles . | . . . Follow-up Attacks . | . . . Damage Inflicted . | . . . Guns . | . . . Cannons . | . . . Explosions . | . . . Melee . | . . . Ramming . | . . . Kinetic . | . . . Thermal . | . . . Explosive . | . . . Electromagnetic . | . . . Impact . | . . . Slashing . | . . . Piercing . | . . . Highest Corruption . | . . . Average Corruption . | . . . Corruption Purged . | . . . Corruption Blocked . | . . . Overload Shots . | . . . Overflow Damage . | . . . Projectiles . | . . . Explosions . | . . . Melee . | . . . Knockbacks . | . . . Impact . | . . . Kinetic . | . . . Secondary . | . . . Self-Inflicted Damage . | . . . Shots . | . . . Rammed . | . . . Targets Rammed . | . . . Kicked . | . . . Crushed . | . . . Highest Temperature 2 | . . 2 Average Temperature 2 | . . 2 Received Heat Transfer 78 | . 24 54 Siege Activations . | . . . Robots Corrupted . | . . . Combat Hostiles . | . . . Parts Fried . | . . . Impact Corruptions . | . . . Robots Melted . | . . . Combat Hostiles . | . . . Parts Melted . | . . . Heat Transferred . | . . . Parts Sabotaged . | . . . Parts Stolen . | . . . Parts Stripped . | . . . Power Chain Reactions . | . . . Missiles Intercepted . | . . . Alert | -11 -10 -9 ------- Run | Scr Mat Mat Peak Influence 100 | . 15 100 Initial 5 | . . 5 Average 27 | . . 74 Maximum Alert Level . | . . . Low Security (%) 100 | . 100 100 Level 1 . | . . . Level 2 . | . . . Level 3 . | . . . Level 4 . | . . . Level 5 . | . . . High Security . | . . . Max Security . | . . . Squads Dispatched 4 | . 2 2 Investigation 2 | . 1 1 Extermination . | . . . Reinforcement 2 | . 1 1 Assault . | . . . Garrison . | . . . Intercept . | . . . Searches Triggered . | . . . Construction Impeded . | . . . Haulers Reinforced . | . . . Active Scanning Responses . | . . . Cargo Convoy Interrupts . | . . . Stealth | -11 -10 -9 --------- Run | Scr Mat Mat Distress Signals 2 | . . 2 Communications Jammed . | . . . Distress Signals . | . . . Times Spotted 17 | . 4 13 Peak Tracking Total 11 | . 2 11 Tactical Retreats 2 | . 1 1 Traps | -11 -10 -9 ------- Run | Scr Mat Mat Traps Triggered . | . . . Indirectly . | . . . Trap Hack Attempts . | . . . Triggered . | . . . Disarmed . | . . . Reprogrammed . | . . . Reused . | . . . Traps Extracted . | . . . Installed . | . . . Triggered . | . . . Machines | -11 -10 -9 ---------- Run | Scr Mat Mat Machines Disabled . | . . . Max in Single Turn . | . . . Machines Sabotaged . | . . . Garrisons Compromised . | . . . Overloaded Fab Kills . | . . . Hacking | -11 -10 -9 --------- Run | Scr Mat Mat Machines Accessed 3 | . 1 2 Terminals 3 | . 1 2 Fabricators . | . . . Repair Stations . | . . . Recycling Units . | . . . Scanalyzers . | . . . Garrison Access . | . . . Total Hacks 9 | . 2 7 Successful . | . . . Failed 9 | . 2 7 Catastrophic 5 | . 1 4 Database Lockouts . | . . . Manual 9 | . 2 7 Terminals 9 | . 2 7 Fabricators . | . . . Repair Stations . | . . . Recycling Units . | . . . Scanalyzers . | . . . Garrison Access . | . . . Terminal Hacks . | . . . Fabricator Hacks . | . . . Repair Station Hacks . | . . . Recycling Unit Hacks . | . . . Scanalyzer . | . . . Garrison Access Hacks . | . . . Unauthorized Hacks . | . . . Terminals . | . . . Fabricators . | . . . Repair Stations . | . . . Recycling Units . | . . . Scanalyzers . | . . . Garrison Access . | . . . Data Cores Recovered . | . . . Used . | . . . Hacking Detections 3 | . 1 2 Full Trace Events 3 | . 1 2 Feedback Events . | . . . Feedback Blocked . | . . . Robot Schematics Acquired . | . . . Robots Built . | . . . Authchips . | . . . Time . | . . . Total Robot Build Rating . | . . . Part Schematics Acquired . | . . . Parts Built . | . . . Authchips . | . . . Time . | . . . Total Part Build Rating . | . . . Parts Repaired . | . . . Time . | . . . Parts Recycled . | . . . Recycled Matter . | . . . Retrieved Matter . | . . . Retrieved Components . | . . . Parts Scanalyzed . | . . . Part Schematics Acquired . | . . . Parts Damaged . | . . . Bothacking | -11 -10 -9 ------------ Run | Scr Mat Mat Used RIF Installer . | . . . Robots Hacked . | . . . Non-combat . | . . . Combat . | . . . Robot Hacks Applied . | . . . Relay Couplers Released . | . . . Fabnet Peak Effective % . | . . . Robots Rewired . | . . . Allies Hacked . | . . . Hacks Repelled . | . . . Allies | -11 -10 -9 -------- Run | Scr Mat Mat Total Allies . | . . . Largest Group . | . . . Highest-Rated Group . | . . . Highest-Rated Ally . | . . . Total Orders . | . . . Ally Attacks . | . . . Total Damage . | . . . Kills . | . . . Allies Corrupted . | . . . Allies Melted . | . . . Intel | -11 -10 -9 ------- Run | Scr Mat Mat Robot Analysis Total . | . . . Derelict Logs Recovered . | . . . Drone Launches . | . . . Drone Recoveries . | . . . Exploration | -11 -10 -9 ------------- Run | Scr Mat Mat Turns Passed 191 | . 120 71 Spaces Moved 280 | 1 135 144 Core 52 | . . 52 Treads . | . . . Legs 81 | 1 80 . Wheels . | . . . Hover . | . . . Flight 147 | . 55 92 Fastest Speed 40 | 120 40 40 Average Speed 65 | 120 87 43 Slowest Speed 120 | 120 120 50 Overloaded Moves . | . . . Propulsion Burnouts . | . . . Robots Hopped 6 | . . 6 Cave-ins Triggered . | . . . Exploration Rate (%) 17 | 2 34 15 Regions Visited 2 Branch Regions . Pre-discovered Areas . | . . . Known Exits Taken . | . . . Unknown Exits Taken 2 | 1 1 . Scrap Searched . | . . . Spaces Dug . | . . . Terrain Destroyed . | . . . Melee . | . . . Projectile . | . . . AOE . | . . . Terrain Rammed . | . . . Walls Destroyed . | . . . Machines Disabled . | . . . Actions | -11 -10 -9 --------- Run | Scr Mat Mat Total 280 | . 135 145 Wait 2 | . . 2 Move 267 | . 134 133 Hop 5 | . . 5 Pick Up 1 | . . 1 Fast Attach 4 | . 1 3 Attach . | . . . Detach . | . . . Swap . | . . . Drop 1 | . . 1 Fire . | . . . Melee . | . . . Ram . | . . . Kick . | . . . Crush . | . . . Escape Stasis . | . . . Rewire . | . . . Trap . | . . . Miscellaneous . | . . . Route ------- -11/Scrapyard -10/Materials -9/Materials History --------- Turn | Location | Event 1 | -11/Scrapyard | Discovered new exit (range 0) 1 | -11/Scrapyard | Entered Materials 97 | -10/Materials | Released all parts (6) 115 | -10/Materials | Discovered new exit (range 14) 121 | -10/Materials | Entered another Materials area 121 | -9/Materials | Evolved 2 slots: Propulsion x1, Utility x1 192 | -9/Materials | Self-destructed Last Messages --------------- 00131_ O-16 Technician: "IFF HANDSHAKE FAILED. SECURING TERMINAL." 00131_ O-16 Technician uses terminal to summon reinforcements. 00131_ ALERT: Hostiles spotted, dispatching reinforcements to Terminal M001. 00131_ O-16 Technician locks terminal. 00131_ Connecting with Terminal... 00131_ ALERT: Suspicious activity at Terminal M011. Dispatching Investigation squad. 00132_ K-01 Serf collects debris. 00134_ W-16 Scout sends out distress signal. 00138_ K-01 Serf collects debris. 00138_ Acquired System Shield. 00145_ Dropped Lgt. Treads. 00145_ Acquired System Shield. 00148_ K-01 Serf collects debris. 00153_ Critical hit (Burn: +37). 00155_ K-01 Serf collects debris. 00164_ W-16 Scout sends out distress signal. 00166_ Flight Unit destroyed. 00171_ Connecting with Terminal... Map ----- +----------------------------------------------------+ | ![!#?# #?? #????????????????????????? | | ![!#?# #?[ #????????????????????????? | | ! ![ ## #? #????????????????????????? | | ### # #????????????????????????? | | #?# # #????????????????????????? | | """" #?# + #????????????????????????? | | """" #?# ############??????????????????????? | | """" #?# T ?????????????????????? | | ############ ????????????????????? | | ?????????#"" ???????????????????? | | ?????????#"T ^ #####????????????????????? | | ?????????#"" """ """ #????????????????????????? | | ?????????### """ """ #????????????????????????? | | ???????????# """ """ #????????????????????????? | | ???????????# #????????????????????????? | | ?????????### #????????????????????????? | | ?????????#"" """ """ #????????????????????????? | | ?????????#"T """ """ #????????????????????????? | | ?????????#"" """ """ #????????????????????????? | | ?????????### #????????????????????????? | | ???????????# #????????????????????????? | | ???????????# """ #?????????########???????? | | ????######## """ #???####### """ """??????? | | ????# """ [[#???# # """ """ #????? | | ????# g[[##### # """ """ #????? | | ????# g@ + #????? | | ????# ##### # #????? | | ????####+### w #???# # #????? | | ?????? ## #########???####### #????? | | ????# ]]] ## #?????????????????# #????? | | ????# ]]] ## #?????????????????###########????? | | ????# ]]] ## +????????????????????????????????? | | ????# ## #????????????????????????????????? | | ????# ## #????????????????????????????????? | | ????######### #????????????????????????????????? | | ????????????# #????????????????????????????????? | | ????????????# #????????????????????????????????? | | ????????????# #????????????????????????????????? | | ????????????+ #????????????????????????????????? | | ????????????# ????????????????????????????????? | | ????????????# ????????????????????????????????? | | ????????????? ????????????????????????????????? | | ?????????????####????????????????????????????????? | | ?????????????????????????????????????????????????? | | ?????????????????????????????????????????????????? | | ?????????????????????????????????????????????????? | | ?????????????????????????????????????????????????? | | ?????????????????????????????????????????????????? | | ?????????????????????????????????????????????????? | | ?????????????????????????????????????????????????? | +----------------------------------------------------+ Best States ------------- Heat Dissipation 28 Energy Generation 10 Energy Capacity 125 Matter Stores 300 Matter Capacity 300 Sight Range 16 Terrain Scan Density 10 Evasion (%) 62 Defensive Hacking 30 Item Schematics ----------------- None Robot Schematics ------------------ None Fabricated ------------ Nothing Alien Tech Used ----------------- None Achievements -------------- None Challenges ------------ None Game ------ Seed ClaymoresDeuteriumNetwork Manual? 0 Play Time 00:05:04 Cumulative 121.7 hours Start 2022.04.29 @ 22:19:38 End 2022.04.29 @ 22:22:55 Sessions 1 Manual Loads 0 Difficulty Rogue Special Mode None Game No. 154 Rogue 153 Adventurer 0 Explorer 1 Win Type - Total 3 Types 3/0/0/0/0/0/0/0/0 Lore% 58 Gallery% 56 Achievement% 47 Wizard Run 0 Options --------- ASCII 1 Keyboard 0 Movement Vi Keybinds 0 Fullscreen 1 Font 18/SmallcapsGlow Map View 76x50 Tactical HUD 1 Map Filters NONE Filters NONE Steam 1 RUN: 783de7b0-0d8e-4d14-86ea-b2fff5077cfc